lending/lending_fUSD_20250114
["ID","MTS","AMOUNT","RATE_DAILY","PERIOD"]
[348858448,1736819440475,-1644.5,9.803e-05,2]
[348858449,1736819440486,-1169.17411352,9.803e-05,2]
[348858450,1736819440603,-284.49588648,9.803e-05,2]
[348858451,1736819440613,-123.85099123,9.803e-05,2]
[348858452,1736819440625,-381.28266465,9.803e-05,2]
[348858453,1736819440637,-1573.98634412,9.803e-05,2]
[348858454,1736819440647,-1576.52,9.803e-05,2]
[348858455,1736819440661,-1969.27,9.803e-05,2]
[348858456,1736819440671,-3416.04,9.803e-05,2]
[348858457,1736819440681,-1137.44,9.803e-05,2]
[348858458,1736819440690,-8317.07,9.803e-05,2]
[348858459,1736819440700,-1543.25,9.81e-05,2]
[348858460,1736819440710,-768.65,9.81e-05,2]
[348858461,1736819440719,-437.62,9.81e-05,2]
[348858462,1736819440729,-500.0,9.883e-05,2]
[348858463,1736819440738,-2059.05,9.883e-05,2]
[348858464,1736819440748,-592.08,9.883e-05,2]
[348858465,1736819440757,-1280.7,9.883e-05,2]
[348858466,1736819440767,-500.0,9.883e-05,2]
[348858467,1736819440776,-1076.74,9.883e-05,2]
[348858468,1736819440786,-2657.21,9.883e-05,2]
[348858469,1736819440796,-954.22,9.883e-05,2]
[348858470,1736819440806,-531.23158086,9.883e-05,2]
[348858471,1736819440815,-771.44,9.883e-05,2]
[348858472,1736819440825,-836.9,9.883e-05,2]
[348858473,1736819440835,-500.0,9.883e-05,2]
[348858474,1736819440844,-1623.12,9.883e-05,2]
[348858475,1736819440853,-1618.62,9.883e-05,2]
[348858477,1736819440862,-500.0,9.883e-05,2]
[348858479,1736819440872,-801.82,9.883e-05,2]
[348858481,1736819440882,-500.0,9.884e-05,2]
[348858482,1736819440891,-500.0,9.884e-05,2]
[348858483,1736819440901,-253.11453367,9.884e-05,2]
[348858484,1736819440912,-500.0,9.884e-05,2]
[348858485,1736819440924,-500.0,9.884e-05,2]
[348858486,1736819440934,-500.0,9.884e-05,2]
[348858487,1736819440944,-500.0,9.884e-05,2]
[348858488,1736819440953,-504.56375548,9.884e-05,2]
[348858489,1736819440964,-339.2936355,9.884e-05,2]
[348858490,1736819440973,-500.0,9.884e-05,2]
[348858491,1736819440982,-500.0,9.884e-05,2]
[348858492,1736819440993,-500.0,9.884e-05,2]
[348858493,1736819441003,-507.28264143,9.884e-05,2]
[348858494,1736819441012,-500.0,9.884e-05,2]
[348858495,1736819441022,-503.69704109,9.884e-05,2]
[348858496,1736819441032,-500.0,9.884e-05,2]
[348858497,1736819441042,-500.0,9.884e-05,2]
[348858498,1736819441051,-508.53417872,9.884e-05,2]
[348858499,1736819441061,-500.0,9.884e-05,2]
[348858500,1736819441071,-503.27812881,9.884e-05,2]
[348858501,1736819441080,-503.44644176,9.884e-05,2]
[348858502,1736819441089,-500.0,9.884e-05,2]
[348858503,1736819441099,-504.14959918,9.884e-05,2]
[348858504,1736819441109,-503.14911237,9.884e-05,2]
[348858505,1736819441118,-508.19827343,9.884e-05,2]
[348858506,1736819441128,-507.71822945,9.884e-05,2]
[348858507,1736819441138,-502.92362921,9.884e-05,2]
[348858508,1736819441146,-500.0,9.884e-05,2]
[348858509,1736819441159,-506.26757152,9.884e-05,2]
[348858510,1736819441168,-502.91852864,9.884e-05,2]
[348858511,1736819441178,-500.0,9.884e-05,2]
[348858512,1736819441187,-504.59377452,9.884e-05,2]
[348858513,1736819441196,-500.0,9.884e-05,2]
[348858514,1736819441207,-501.65595786,9.884e-05,2]
[348858515,1736819441218,-500.0,9.884e-05,2]
[348858516,1736819441227,-503.94935042,9.884e-05,2]
[348858517,1736819441237,-549.06102215,9.884e-05,2]
[348858518,1736819441247,-500.0,9.884e-05,2]
[348858519,1736819441256,-500.0,9.884e-05,2]
[348858520,1736819441266,-599.93,9.884e-05,2]
[348858521,1736819441276,-504.0342843,9.884e-05,2]
[348858522,1736819441285,-503.39054504,9.884e-05,2]
[348858523,1736819441295,-502.45370503,9.884e-05,2]
[348858524,1736819441305,-500.0,9.884e-05,2]
[348858525,1736819441314,-502.57375444,9.884e-05,2]
[348858526,1736819441324,-500.0,9.884e-05,2]
[348858527,1736819441333,-500.0,9.884e-05,2]
[348858528,1736819441342,-820.25,9.884e-05,2]
[348858529,1736819441352,-502.72741777,9.884e-05,2]
[348858530,1736819441362,-501.79091189,9.884e-05,2]
[348858531,1736819441372,-500.0,9.884e-05,2]
[348858532,1736819441382,-500.0,9.884e-05,2]
[348858533,1736819441392,-500.0,9.884e-05,2]
[348858534,1736819441403,-500.0,9.884e-05,2]
[348858535,1736819441413,-500.0,9.884e-05,2]
[348858536,1736819441423,-500.0,9.884e-05,2]
[348858537,1736819441433,-500.0,9.884e-05,2]
[348858538,1736819441443,-643.47,9.884e-05,2]
[348858539,1736819441453,-502.10689746,9.884e-05,2]
[348858540,1736819441463,-509.87874792,9.884e-05,2]
[348858541,1736819441473,-616.76550787,9.884e-05,2]
[348858542,1736819441483,-500.0,9.884e-05,2]
[348858543,1736819441492,-500.0,9.884e-05,2]
[348858544,1736819441502,-500.0,9.884e-05,2]
[348858545,1736819441512,-500.0,9.884e-05,2]
[348858546,1736819441521,-509.19118694,9.884e-05,2]
[348858547,1736819441531,-508.55279767,9.884e-05,2]
[348858548,1736819441540,-500.0,9.884e-05,2]
[348858549,1736819441550,-500.0,9.884e-05,2]
[348858550,1736819441559,-501.6613278,9.884e-05,2]
[348858551,1736819441569,-500.0,9.884e-05,2]
[348858552,1736819441579,-500.0,9.884e-05,2]
[348858553,1736819441589,-500.0,9.884e-05,2]
[348858554,1736819441598,-536.46,9.884e-05,2]
[348858555,1736819441608,-500.0,9.884e-05,2]
[348858556,1736819441618,-500.0,9.884e-05,2]
[348858557,1736819441628,-500.0,9.884e-05,2]
[348858558,1736819441893,-500.0,9.884e-05,2]
[348858559,1736819441907,-500.0,9.884e-05,2]
[348858560,1736819441918,-500.0,9.884e-05,2]
[348858561,1736819441932,-504.27093508,9.884e-05,2]
[348858562,1736819441941,-667.12,9.884e-05,2]
[348858563,1736819441951,-749.85,9.884e-05,2]
[348858564,1736819441961,-500.0,9.884e-05,2]
[348858565,1736819441971,-502.00198565,9.884e-05,2]
[348858566,1736819441980,-737.64,9.884e-05,2]
[348858567,1736819441990,-506.64931286,9.884e-05,2]
[348858568,1736819442001,-502.62239056,9.884e-05,2]
[348858569,1736819442011,-500.0,9.884e-05,2]
[348858570,1736819442020,-500.0,9.884e-05,2]
[348858571,1736819442030,-500.0,9.884e-05,2]
[348858572,1736819442040,-556.14269377,9.884e-05,2]
[348858573,1736819442049,-516.16,9.884e-05,2]
[348858574,1736819442059,-505.62063885,9.884e-05,2]
[348858575,1736819442068,-500.0,9.884e-05,2]
[348858576,1736819442077,-500.0,9.884e-05,2]
[348858577,1736819442086,-500.0,9.884e-05,2]
[348858578,1736819442095,-500.0,9.884e-05,2]
[348858579,1736819442104,-500.0,9.884e-05,2]
[348858580,1736819442114,-500.0,9.884e-05,2]
[348858581,1736819442123,-500.0,9.884e-05,2]
[348858582,1736819442132,-837.61,9.884e-05,2]
[348858583,1736819442142,-500.0,9.884e-05,2]
[348858584,1736819442151,-500.0,9.884e-05,2]
[348858585,1736819442160,-500.0,9.884e-05,2]
[348858586,1736819442170,-506.13209223,9.884e-05,2]
[348858587,1736819442179,-500.0,9.884e-05,2]
[348858588,1736819442189,-503.33139209,9.884e-05,2]
[348858589,1736819442198,-500.0,9.884e-05,2]
[348858590,1736819442207,-782.4,9.884e-05,2]
[348858591,1736819442217,-500.0,9.884e-05,2]
[348858592,1736819442227,-500.0,9.884e-05,2]
[348858593,1736819442236,-500.0,9.884e-05,2]
[348858594,1736819442246,-500.0,9.884e-05,2]
[348858595,1736819442255,-500.0,9.884e-05,2]
[348858596,1736819442264,-500.0,9.884e-05,2]
[348858597,1736819442274,-809.37,9.884e-05,2]
[348858598,1736819442283,-500.0,9.884e-05,2]
[348858599,1736819442292,-500.0,9.884e-05,2]
[348858600,1736819442301,-500.0,9.884e-05,2]
[348858601,1736819442310,-500.0,9.884e-05,2]
[348858602,1736819442319,-500.0,9.884e-05,2]
[348858603,1736819442328,-500.0,9.884e-05,2]
[348858604,1736819442338,-500.0,9.884e-05,2]
[348858605,1736819442347,-500.0,9.884e-05,2]
[348858606,1736819442356,-500.0,9.884e-05,2]
[348858607,1736819442366,-514.51087203,9.884e-05,2]
[348858608,1736819442375,-500.0,9.884e-05,2]
[348858609,1736819442384,-500.0,9.884e-05,2]
[348858610,1736819442393,-500.0,9.884e-05,2]
[348858611,1736819442405,-850.65,9.884e-05,2]
[348858612,1736819442414,-500.0,9.884e-05,2]
[348858613,1736819442424,-500.0,9.884e-05,2]
[348858614,1736819442433,-544.97,9.884e-05,2]
[348858615,1736819442442,-500.0,9.884e-05,2]
[348858616,1736819442451,-500.0,9.884e-05,2]
[348858617,1736819442461,-511.43089072,9.884e-05,2]
[348858618,1736819442470,-663.33,9.884e-05,2]
[348858619,1736819442480,-500.0,9.884e-05,2]
[348858620,1736819442489,-642.54783671,9.884e-05,2]
[348858621,1736819442498,-402.50175798,9.884e-05,2]
[348858622,1736819442507,-500.0,9.884e-05,2]
[348858623,1736819442517,-500.0,9.884e-05,2]
[348858624,1736819442526,-479.08261046,9.884e-05,2]
[348858625,1736819442536,-505.10721811,9.884e-05,2]
[348858626,1736819442545,-515.04077023,9.884e-05,2]
[348858627,1736819442555,-674.09,9.884e-05,2]
[348858628,1736819442564,-505.19060948,9.884e-05,2]
[348858629,1736819442573,-500.0,9.884e-05,2]
[348858630,1736819442582,-500.0,9.884e-05,2]
[348858631,1736819442591,-500.0,9.884e-05,2]
[348858632,1736819442600,-500.0,9.884e-05,2]
[348858633,1736819442609,-500.0,9.884e-05,2]
[348858634,1736819442618,-504.69149804,9.884e-05,2]
[348858635,1736819442627,-500.0,9.884e-05,2]
[348858636,1736819442637,-500.0,9.884e-05,2]
[348858637,1736819442646,-500.0,9.884e-05,2]
[348858638,1736819442655,-500.0,9.884e-05,2]
[348858639,1736819442663,-500.0,9.884e-05,2]
[348858640,1736819442672,-500.0,9.884e-05,2]
[348858641,1736819442682,-500.0,9.884e-05,2]
[348858642,1736819442691,-500.0,9.884e-05,2]
[348858643,1736819442700,-500.0,9.884e-05,2]
[348858644,1736819442709,-500.0,9.884e-05,2]
[348858645,1736819442718,-500.0,9.884e-05,2]
[348858646,1736819442728,-500.0,9.884e-05,2]
[348858647,1736819442737,-503.31342788,9.884e-05,2]
[348858648,1736819442746,-500.0,9.884e-05,2]
[348858649,1736819442755,-500.0,9.884e-05,2]
[348858650,1736819442763,-500.0,9.884e-05,2]
[348858651,1736819442772,-500.0,9.884e-05,2]
[348858652,1736819442782,-500.0,9.884e-05,2]
[348858653,1736819442791,-500.0,9.884e-05,2]
[348858654,1736819442800,-500.0,9.884e-05,2]
[348858655,1736819442809,-500.0,9.884e-05,2]
[348858656,1736819442818,-500.0,9.884e-05,2]
[348858657,1736819442827,-502.9364833,9.884e-05,2]
[348858658,1736819442836,-669.64,9.884e-05,2]
[348858659,1736819442845,-500.0,9.884e-05,2]
[348858660,1736819442854,-500.0,9.884e-05,2]
[348858661,1736819442863,-500.0,9.884e-05,2]
[348858662,1736819442872,-519.25,9.884e-05,2]
[348858663,1736819442881,-500.0,9.884e-05,2]
[348858664,1736819442891,-757.81,9.884e-05,2]
[348858665,1736819442899,-505.23770857,9.884e-05,2]
[348858666,1736819442911,-500.0,9.884e-05,2]
[348858667,1736819442922,-503.47025288,9.884e-05,2]
[348858668,1736819442932,-509.71557813,9.884e-05,2]
[348858669,1736819442940,-666.09,9.884e-05,2]
[348858670,1736819442949,-500.0,9.884e-05,2]
[348858671,1736819442959,-502.96806249,9.884e-05,2]
[348858672,1736819442968,-500.0,9.884e-05,2]
[348858673,1736819442977,-500.0,9.884e-05,2]
[348858674,1736819442986,-509.84,9.884e-05,2]
[348858675,1736819442997,-504.39006937,9.884e-05,2]
[348858676,1736819443006,-500.0,9.884e-05,2]
[348858677,1736819443015,-506.41639416,9.884e-05,2]
[348858679,1736819443024,-500.0,9.884e-05,2]
[348858681,1736819443032,-500.0,9.884e-05,2]
[348858683,1736819443042,-500.00877865,9.884e-05,2]
[348858684,1736819443051,-2032.97,9.884e-05,2]
[348858686,1736819443060,-500.0,9.884e-05,2]
[348858688,1736819443069,-505.59060408,9.884e-05,2]
[348858689,1736819443078,-596.38720701,9.884e-05,2]
[348858690,1736819443088,-500.0,9.884e-05,2]
[348858691,1736819443097,-500.0,9.884e-05,2]
[348858692,1736819443106,-500.0,9.884e-05,2]
[348858693,1736819443114,-500.0,9.884e-05,2]
[348858694,1736819443123,-503.73288363,9.884e-05,2]
[348858695,1736819443132,-500.0,9.884e-05,2]
[348858696,1736819443141,-500.0,9.884e-05,2]
[348858697,1736819443150,-500.0,9.884e-05,2]
[348858698,1736819443160,-502.67761008,9.884e-05,2]
[348858699,1736819443169,-500.0,9.884e-05,2]
[348858700,1736819443178,-1128.87,9.884e-05,2]
[348858701,1736819443187,-572.45,9.884e-05,2]
[348858702,1736819443195,-607.9447807,9.884e-05,2]
[348858703,1736819443205,-507.58569847,9.884e-05,2]
[348858704,1736819443214,-507.11706687,9.884e-05,2]
[348858705,1736819443224,-500.0,9.884e-05,2]
[348858706,1736819443233,-503.67857819,9.884e-05,2]
[348858707,1736819443243,-2188.04,9.884e-05,2]
[348858708,1736819443252,-500.0,9.884e-05,2]
[348858709,1736819443262,-500.0,9.884e-05,2]
[348858710,1736819443271,-500.0,9.884e-05,2]
[348858711,1736819443280,-502.90194208,9.884e-05,2]
[348858712,1736819443290,-502.84178726,9.884e-05,2]
[348858713,1736819443299,-5938.6,9.884e-05,2]
[348858714,1736819443308,-503.13526082,9.884e-05,2]
[348858715,1736819443317,-500.0,9.884e-05,2]
[348858716,1736819443326,-906.52,9.884e-05,2]
[348858717,1736819443335,-500.0,9.884e-05,2]
[348858718,1736819443344,-504.55782155,9.884e-05,2]
[348858719,1736819443354,-506.375704,9.884e-05,2]
[348858720,1736819443363,-500.0,9.884e-05,2]
[348858721,1736819443372,-500.0,9.884e-05,2]
[348858722,1736819443381,-505.50142212,9.884e-05,2]
[348858723,1736819443390,-500.0,9.884e-05,2]
[348858724,1736819443399,-529.09850646,9.884e-05,2]
[348858725,1736819443409,-500.0,9.884e-05,2]
[348858726,1736819443419,-507.77091992,9.884e-05,2]
[348858727,1736819443428,-616.83,9.884e-05,2]
[348858728,1736819443437,-863.16,9.884e-05,2]
[348858729,1736819443447,-797.82,9.884e-05,2]
[348858730,1736819443457,-432.00859818,9.884e-05,2]
[348858731,1736819443466,-776.67,9.884e-05,2]
[348858732,1736819443476,-500.0,9.884e-05,2]
[348858733,1736819443485,-500.0,9.884e-05,2]
[348858734,1736819443495,-500.0,9.884e-05,2]
[348858735,1736819443503,-714.07,9.884e-05,2]
[348858736,1736819443513,-500.0,9.884e-05,2]
[348858737,1736819443522,-500.0,9.884e-05,2]
[348858738,1736819443531,-500.0,9.884e-05,2]
[348858739,1736819443540,-503.40972481,9.884e-05,2]
[348858740,1736819443550,-1076.37,9.884e-05,2]
[348858741,1736819443559,-500.0,9.884e-05,2]
[348858742,1736819443568,-500.0,9.884e-05,2]
[348858743,1736819443577,-500.0,9.884e-05,2]
[348858744,1736819443586,-507.2485189,9.884e-05,2]
[348858745,1736819443595,-500.0,9.884e-05,2]
[348858746,1736819443605,-500.0,9.884e-05,2]
[348858747,1736819443614,-506.16171189,9.884e-05,2]
[348858748,1736819443623,-500.0,9.884e-05,2]
[348858749,1736819443632,-500.0,9.884e-05,2]
[348858750,1736819443642,-500.0,9.884e-05,2]
[348858751,1736819443651,-1368.85,9.884e-05,2]
[348858752,1736819443661,-500.0,9.884e-05,2]
[348858753,1736819443670,-500.0,9.884e-05,2]
[348858754,1736819443679,-500.0,9.884e-05,2]
[348858755,1736819443688,-500.0,9.884e-05,2]
[348858756,1736819443697,-500.0,9.884e-05,2]
[348858757,1736819443706,-2304.67,9.884e-05,2]
[348858758,1736819443715,-500.0,9.884e-05,2]
[348858759,1736819443724,-500.0,9.884e-05,2]
[348858760,1736819443733,-503.14469511,9.884e-05,2]
[348858761,1736819443743,-500.0,9.884e-05,2]
[348858762,1736819443752,-500.0,9.884e-05,2]
[348858763,1736819443761,-502.90600632,9.884e-05,2]
[348858764,1736819443771,-711.6,9.884e-05,2]
[348858765,1736819443779,-500.0,9.884e-05,2]
[348858766,1736819443788,-500.0,9.884e-05,2]
[348858767,1736819443798,-500.0,9.884e-05,2]
[348858768,1736819443807,-500.0,9.884e-05,2]
[348858769,1736819443816,-502.32549489,9.884e-05,2]
[348858770,1736819443825,-5159.27,9.884e-05,2]
[348858771,1736819443834,-500.0,9.884e-05,2]
[348858772,1736819443844,-500.0,9.884e-05,2]
[348858773,1736819443853,-500.0,9.884e-05,2]
[348858774,1736819443863,-500.0,9.884e-05,2]
[348858775,1736819443872,-500.0,9.884e-05,2]
[348858776,1736819443881,-500.0,9.884e-05,2]
[348858777,1736819443891,-500.0,9.884e-05,2]
[348858778,1736819443900,-3794.82,9.884e-05,2]
[348858779,1736819443911,-500.0,9.884e-05,2]
[348858780,1736819443926,-2424.7,9.884e-05,2]
[348858781,1736819443936,-500.0,9.884e-05,2]
[348858782,1736819443946,-500.0,9.884e-05,2]
[348858783,1736819443956,-950.47,9.884e-05,2]
[348858784,1736819443967,-500.0,9.884e-05,2]
[348858785,1736819443977,-510.93209724,9.884e-05,2]
[348858786,1736819443987,-500.0,9.884e-05,2]
[348858787,1736819443996,-1098.19,9.884e-05,2]
[348858788,1736819444006,-377.52591017,9.884e-05,2]
[348858789,1736819444015,-423.4805807,9.884e-05,2]
[348858790,1736819444024,-535.73,9.884e-05,2]
[348858791,1736819444034,-500.0,9.884e-05,2]
[348858792,1736819444043,-500.0,9.884e-05,2]
[348858793,1736819444052,-500.0,9.884e-05,2]
[348858794,1736819444061,-500.0,9.884e-05,2]
[348858795,1736819444071,-513.89794307,9.884e-05,2]
[348858796,1736819444080,-1422.91,9.884e-05,2]
[348858797,1736819444089,-225.0655617,9.884e-05,2]
[348858798,1736819444098,-500.0,9.884e-05,2]
[348858799,1736819444107,-500.0,9.884e-05,2]
[348858800,1736819444116,-500.0,9.884e-05,2]
[348858801,1736819444125,-500.0,9.884e-05,2]
[348858802,1736819444134,-584.54,9.884e-05,2]
[348858803,1736819444143,-521.08,9.884e-05,2]
[348858804,1736819444153,-507.42776311,9.884e-05,2]
[348858805,1736819444165,-595.2,9.884e-05,2]
[348858806,1736819444174,-500.0,9.884e-05,2]
[348858807,1736819444183,-500.0,9.884e-05,2]
[348858808,1736819444193,-500.0,9.884e-05,2]
[348858809,1736819444202,-500.0,9.884e-05,2]
[348858810,1736819444211,-500.0,9.884e-05,2]
[348858811,1736819444220,-504.33,9.884e-05,2]
[348858812,1736819444229,-2425.64,9.884e-05,2]
[348858813,1736819444238,-1662.28,9.884e-05,2]
[348858814,1736819444247,-993.31,9.884e-05,2]
[348858815,1736819444257,-506.87873388,9.884e-05,2]
[348858816,1736819444267,-362.30531151,9.884e-05,2]
[348858817,1736819444336,-141.82682681,9.884e-05,2]
[348858818,1736819444345,-500.0,9.884e-05,2]
[348858819,1736819444354,-500.0,9.884e-05,2]
[348858820,1736819444363,-500.0,9.884e-05,2]
[348858821,1736819444373,-975.231992,9.884e-05,2]
[348858822,1736819444381,-500.0,9.884e-05,2]
[348858823,1736819444392,-608.97884682,9.884e-05,2]
[348858824,1736819444401,-58.35233437,9.884e-05,2]
[348858825,1736819445071,-96.2241173,9.884e-05,2]
[348858826,1736819445080,-525.28614617,9.884e-05,2]
[348858827,1736819445090,-335.23973653,9.884e-05,2]
[348858828,1736819445101,-371.70026347,9.884e-05,2]
[348858829,1736819445110,-532.60834629,9.884e-05,2]
[348858830,1736819445119,-500.0,9.884e-05,2]
[348858831,1736819445128,-500.0,9.884e-05,2]
[348858832,1736819445138,-500.0,9.884e-05,2]
[348858833,1736819445147,-159.074657,9.884e-05,2]
[348858834,1736819445156,-500.0,9.884e-05,2]
[348858835,1736819445165,-289.24551155,9.884e-05,2]
[348858836,1736819445174,-500.0,9.884e-05,2]
[348858837,1736819445183,-500.0,9.884e-05,2]
[348858838,1736819445192,-874.01,9.884e-05,2]
[348858839,1736819445203,-500.0,9.884e-05,2]
[348858840,1736819445212,-500.0,9.884e-05,2]
[348858841,1736819445222,-500.0,9.884e-05,2]
[348858842,1736819445231,-1138.96,9.884e-05,2]
[348858843,1736819445240,-500.0,9.884e-05,2]
[348858844,1736819445249,-500.0,9.884e-05,2]
[348858845,1736819445258,-500.0,9.884e-05,2]
[348858846,1736819445267,-500.0,9.884e-05,2]
[348858847,1736819445276,-469.64675784,9.885e-05,2]
[348858848,1736819445286,-1353.07,9.885e-05,2]
[348858849,1736819445295,-1259.94,9.885e-05,2]
[348858850,1736819445304,-1584.06,9.885e-05,2]
[348858851,1736819445314,-1023.81,9.885e-05,2]
[348858852,1736819445323,-500.0,9.885e-05,2]
[348858853,1736819445332,-2295.02,9.885e-05,2]
[348858854,1736819445341,-500.0,9.885e-05,2]
[348858855,1736819445350,-500.0,9.885e-05,2]
[348858856,1736819445359,-500.0,9.885e-05,2]
[348858857,1736819445369,-1257.8,9.885e-05,2]
[348858858,1736819445378,-504.60197017,9.885e-05,2]
[348858859,1736819445388,-527.16584087,9.885e-05,2]
[348858860,1736819445397,-500.0,9.885e-05,2]
[348858861,1736819445408,-504.95873837,9.885e-05,2]
[348858862,1736819445418,-500.0,9.885e-05,2]
[348858863,1736819445427,-500.0,9.885e-05,2]
[348858864,1736819445436,-500.0,9.885e-05,2]
[348858865,1736819445446,-2766.51,9.885e-05,2]
[348858866,1736819445455,-503.63339841,9.885e-05,2]
[348858867,1736819445465,-500.0,9.885e-05,2]
[348858868,1736819445474,-2180.95,9.885e-05,2]
[348858869,1736819445483,-500.0,9.885e-05,2]
[348858870,1736819445492,-507.64123232,9.885e-05,2]
[348858871,1736819445501,-506.93175226,9.885e-05,2]
[348858872,1736819445510,-500.0,9.885e-05,2]
[348858873,1736819445519,-503.65280629,9.885e-05,2]
[348858874,1736819445529,-506.26394483,9.885e-05,2]
[348858875,1736819445728,-500.0,9.885e-05,2]
[348858876,1736819445737,-504.35408174,9.885e-05,2]
[348858877,1736819445747,-1672.47,9.885e-05,2]
[348858878,1736819445756,-500.0,9.885e-05,2]
[348858879,1736819445765,-500.0,9.885e-05,2]
[348858880,1736819445774,-500.0,9.885e-05,2]
[348858881,1736819445783,-508.97101451,9.885e-05,2]
[348858882,1736819445792,-509.69917005,9.885e-05,2]
[348858883,1736819445802,-508.42535143,9.885e-05,2]
[348858884,1736819445811,-500.0,9.885e-05,2]
[348858885,1736819445821,-508.95280059,9.885e-05,2]
[348858886,1736819445830,-500.0,9.885e-05,2]
[348858887,1736819445839,-3781.03,9.885e-05,2]
[348858888,1736819445848,-506.41164881,9.885e-05,2]
[348858889,1736819445857,-500.0,9.885e-05,2]
[348858890,1736819445866,-500.0,9.885e-05,2]
[348858891,1736819445876,-503.59003396,9.885e-05,2]
[348858892,1736819445885,-502.50019409,9.885e-05,2]
[348858893,1736819445893,-502.90051768,9.885e-05,2]
[348858894,1736819445902,-500.0,9.885e-05,2]
[348858895,1736819445913,-502.19562777,9.885e-05,2]
[348858896,1736819445927,-500.0,9.885e-05,2]
[348858897,1736819445937,-500.0,9.885e-05,2]
[348858898,1736819445946,-503.39325214,9.885e-05,2]
[348858899,1736819445955,-507.12510468,9.885e-05,2]
[348858900,1736819445966,-502.51851508,9.885e-05,2]
[348858901,1736819445975,-500.0,9.885e-05,2]
[348858902,1736819445985,-500.0,9.885e-05,2]
[348858903,1736819445997,-754.7,9.885e-05,2]
[348858904,1736819446006,-500.0,9.885e-05,2]
[348858905,1736819446016,-836.54,9.885e-05,2]
[348858906,1736819446025,-502.4728027,9.885e-05,2]
[348858907,1736819446034,-500.0,9.885e-05,2]
[348858908,1736819446043,-502.51440194,9.885e-05,2]
[348858909,1736819446053,-500.0,9.885e-05,2]
[348858910,1736819446063,-843.92,9.885e-05,2]
[348858911,1736819446073,-500.0,9.885e-05,2]
[348858912,1736819446082,-500.0,9.885e-05,2]
[348858913,1736819446091,-500.0,9.885e-05,2]
[348858914,1736819446101,-500.0,9.885e-05,2]
[348858915,1736819446110,-805.33,9.885e-05,2]
[348858916,1736819446119,-500.0,9.885e-05,2]
[348858917,1736819446129,-500.0,9.885e-05,2]
[348858918,1736819446139,-500.0,9.885e-05,2]
[348858919,1736819446148,-500.0,9.885e-05,2]
[348858920,1736819446160,-500.0,9.885e-05,2]
[348858921,1736819446170,-504.29408691,9.885e-05,2]
[348858922,1736819446179,-500.0,9.885e-05,2]
[348858923,1736819446188,-532.04,9.885e-05,2]
[348858924,1736819446197,-500.0,9.885e-05,2]
[348858925,1736819446207,-500.0,9.885e-05,2]
[348858926,1736819446217,-500.0,9.885e-05,2]
[348858927,1736819446226,-500.0,9.885e-05,2]
[348858928,1736819446235,-1068.64,9.885e-05,2]
[348858929,1736819446244,-500.0,9.885e-05,2]
[348858930,1736819446253,-500.0,9.885e-05,2]
[348858931,1736819446263,-500.0,9.885e-05,2]
[348858932,1736819446272,-953.3,9.885e-05,2]
[348858933,1736819446282,-500.0,9.885e-05,2]
[348858934,1736819446291,-500.0,9.885e-05,2]
[348858935,1736819446300,-502.1933342,9.885e-05,2]
[348858936,1736819446309,-500.0,9.885e-05,2]
[348858937,1736819446319,-500.0,9.885e-05,2]
[348858939,1736819446328,-500.0,9.885e-05,2]
[348858941,1736819446337,-500.0,9.885e-05,2]
[348858942,1736819446346,-500.0,9.885e-05,2]
[348858943,1736819446355,-500.0,9.885e-05,2]
[348858944,1736819446365,-500.0,9.885e-05,2]
[348858945,1736819446374,-500.0,9.885e-05,2]
[348858946,1736819446383,-500.0,9.885e-05,2]
[348858947,1736819446392,-1454.47,9.885e-05,2]
[348858948,1736819446401,-619.60601127,9.885e-05,2]
[348858949,1736819446415,-500.0,9.885e-05,2]
[348858950,1736819446424,-500.0,9.885e-05,2]
[348858951,1736819446434,-500.0,9.885e-05,2]
[348858952,1736819446443,-1506.21,9.885e-05,2]
[348858953,1736819446456,-500.0,9.885e-05,2]
[348858954,1736819446465,-502.23718324,9.885e-05,2]
[348858955,1736819446474,-500.83664175,9.885e-05,2]
[348858956,1736819446484,-644.41,9.885e-05,2]
[348858957,1736819446493,-502.22068294,9.885e-05,2]